Cogmind - Beta 10.2 @@@ ROGUE MODE // 2021.08.12 @ 12:21:37 Player: Gilgameshx13 Result: Destroyed by Y-45 Defender with Heavy Assault Rifle Performance ------------- Evolutions (1) 500 Regions Visited (2) 400 Robots Destroyed (21) 105 Value Destroyed (625) 625 Prototype IDs (2) 40 Alien Tech Used (0) 0 Bonus (0) 0 TOTAL SCORE: 1670 Bonus ------- None Cogmind --------- Core Integrity 0/400 Matter 268/300 Energy 216/250 System Corruption 0% Temperature Cool (9) Movement Rolling (120) Ox3 Location -9/Materials Parts ------- > --- POWER (1) -------- Ion Engine > --- PROPULSION (2) --- Armored Wheel > --- UTILITY (4) ------ Small Storage Unit High-capacity Storage Unit Terrain Scanner > --- WEAPON (2) ------- (None) > --- INVENTORY (14) --- Light Ion Engine Light Ion Engine Light Ion Engine Wheel Wheel Wheel Armored Wheel Peak State ------------ > --- POWER ------------ Light Ion Engine > --- PROPULSION ------- Armored Wheel Armored Wheel > --- UTILITY ---------- Heat Sink High-capacity Storage Unit Terrain Scanner Hardened Light Armor Plating > --- WEAPON ----------- Small Laser Shotgun > --- INVENTORY -------- Ion Engine Ion Engine Light Ion Engine Light Ion Engine Wheel Wheel Wheel Armored Wheel Armored Wheel Small Storage Unit [Rating: 14] Favorites ----------- Power Light Ion Engine Engine Light Ion Engine Propulsion Armored Wheel Wheel Armored Wheel Utility High-capacity Storage Unit Device Heat Sink Storage High-capacity Storage Unit Protection Hardened Light Armor Plating Weapon Medium Laser Energy Gun Medium Laser Ballistic Gun Assault Rifle Build | -11 -10 -9 ------- Run | Scr Mat Mat Slots Evolved 2 | . . 2 Power . | . . . Propulsion . | . . . Utility 2 | . . 2 Weapon . | . . . Parts Attached 31 | 6 6 19 Power 6 | 1 . 5 Engine 6 | 1 . 5 Core . | . . . Reactor . | . . . Propulsion 6 | 2 2 2 Treads . | . . . Leg . | . . . Wheel 6 | 2 2 2 Hover . | . . . Flight . | . . . Utility 9 | 1 3 5 Device 4 | . 1 3 Storage 4 | 1 2 1 Processor . | . . . Hackware . | . . . Protection 1 | . . 1 Artifact . | . . . Weapon 10 | 2 1 7 Energy Gun 6 | 1 1 4 Energy Cannon . | . . . Ballistic Gun 4 | 1 . 3 Ballistic Cannon . | . . . Launcher . | . . . Special Weapon . | . . . Impact Weapon . | . . . Slashing Weapon . | . . . Piercing Weapon . | . . . Special Melee Weapon . | . . . Unidentified Prototypes . | . . . Parts Lost 19 | . . 19 Power 3 | . . 3 Propulsion 3 | . . 3 Utility 4 | . . 4 Weapon 9 | . . 9 Highest Loss Streak 5 | . . 5 Average Slot Usage (%) 87 | . 90 85 Engine 12 | . 14 10 Wheel 24 | . 28 21 Device 11 | . 2 17 Storage 13 | . 16 11 Protection 3 | . . 5 Energy Gun 15 | . 22 11 Ballistic Gun 6 | . 5 6 Naked Turns . | . . . Heaviest Build 48 | 11 40 48 Greatest Support 26 | 26 26 24 Greatest Overweight (x) 3 | 2 1 3 Average Overweight (x) . | . . 1 Largest Inventory Capacity 18 | 6 18 14 Average Capacity 11 | 5 11 12 Most Carried 12 | 4 8 12 Average Carried 6 | 1 3 8 Final Capacity 14 | 6 12 14 Final Carried 7 | 2 6 7 Class Distribution -------------------- 100% | Mutant Dominant Class ---------------- Mutant | -10/Materials Mutant | -9/Materials Resources | -11 -10 -9 ----------- Run | Scr Mat Mat Matter Collected 578 | 123 55 400 Remotely . | . . . Salvage Created 772 | . 82 690 Parts 45 | . 6 39 Haulers Intercepted . | . . . Recyclers Shooed . | . . . Parts Field Recycled . | . . . Retrieved Matter . | . . . Parts Self-Destructed . | . . . Prevented . | . . . Kills | -11 -10 -9 ------- Run | Scr Mat Mat Combat Hostiles Destroyed 15 | . 1 14 Guns 14 | . 1 13 Classes Destroyed 5 | . 3 2 Worker 4 | . 1 3 Builder 1 | . . 1 Watcher 1 | . 1 . Grunt 14 | . 1 13 Sentry 1 | . . 1 Best Kill Streak 4 | . 2 4 Combat Bots Only 4 | . 1 4 Max Kills in Single Turn 2 | . 1 2 Gunslinging . | . . . Exploded . | . . . Melee . | . . . Uniques/NPCs Destroyed . | . . . Combat | -11 -10 -9 -------- Run | Scr Mat Mat Damage Taken 2022 | . 77 1945 Core 411 | . 9 402 Absorbed by Shields . | . . . Core Remaining (%) 98 | 100 96 . Volleys Fired 82 | . 6 76 Largest 2 | . 2 2 Hottest 100 | . 100 100 Shots Fired 118 | . 12 106 Gun 118 | . 12 106 Cannon . | . . . Launcher . | . . . Special . | . . . Kinetic 49 | . 5 44 Thermal 36 | . 7 29 Explosive . | . . . Electromagnetic 33 | . . 33 Robot Hit Streak 13 | . 3 13 Robot Miss Streak 3 | . 1 3 Penetration Max . | . . . Secondary Targets . | . . . Shots Hit Robots 86 | . 8 78 Core Hits 36 | . 4 32 Critical Hits 1 | . . 1 Critical Kills 1 | . . 1 Critical Parts Destroyed . | . . . Melee Attacks . | . . . Impact . | . . . Slashing . | . . . Piercing . | . . . Sneak Attacks . | . . . Combat Hostiles . | . . . Follow-up Attacks . | . . . Damage Inflicted 1401 | . 111 1290 Guns 1207 | . 111 1096 Cannons . | . . . Explosions 194 | . . 194 Melee . | . . . Ramming . | . . . Kinetic 574 | . 49 525 Thermal 537 | . 62 475 Explosive . | . . . Electromagnetic 290 | . . 290 Impact . | . . . Slashing . | . . . Piercing . | . . . Highest Corruption 3 | . 3 . Average Corruption 2 | . 2 . Corruption Purged . | . . . Effects 3 | . 3 . Message Errors 1 | . 1 . Matter Fused 1 | . 1 . Heat Flow Errors 1 | . 1 . Overload Shots . | . . . Overflow Damage 105 | . . 105 Projectiles . | . . . Explosions 105 | . . 105 Melee . | . . . Knockbacks . | . . . Impact . | . . . Kinetic . | . . . Secondary . | . . . Self-Inflicted Damage 100 | . . 100 Shots 1 | . . 1 Rammed . | . . . Targets Rammed . | . . . Kicked . | . . . Crushed . | . . . Highest Temperature 274 | . 193 274 Average Temperature 92 | . 54 111 Received Heat Transfer 909 | . 18 891 Siege Activations . | . . . Robots Corrupted 1 | . . 1 Combat Hostiles 1 | . . 1 Parts Fried 1 | . . 1 Impact Corruptions . | . . . Robots Melted . | . . . Combat Hostiles . | . . . Parts Melted 2 | . . 2 Heat Transferred 1076 | . 185 891 Parts Sabotaged . | . . . Parts Stolen . | . . . Parts Stripped . | . . . Power Chain Reactions . | . . . Missiles Intercepted . | . . . Alert | -11 -10 -9 ------- Run | Scr Mat Mat Peak Influence 342 | . 77 342 Initial 32 | . . 32 Average 89 | . 57 119 Maximum Alert Level 1 | . . 1 Low Security (%) 88 | 100 100 80 Level 1 11 | . . 19 Level 2 . | . . . Level 3 . | . . . Level 4 . | . . . Level 5 . | . . . High Security . | . . . Max Security . | . . . Squads Dispatched 5 | . . 5 Investigation 3 | . . 3 Extermination . | . . . Reinforcement 2 | . . 2 Assault . | . . . Garrison . | . . . Intercept . | . . . Construction Impeded 1 | . . 1 Haulers Reinforced . | . . . Stealth | -11 -10 -9 --------- Run | Scr Mat Mat Distress Signals 2 | . 1 1 Communications Jammed . | . . . Distress Signals . | . . . Times Spotted 28 | . 6 22 Peak Tracking Total 6 | . 2 6 Tactical Retreats 2 | . . 2 Traps | -11 -10 -9 ------- Run | Scr Mat Mat Traps Triggered 5 | . 4 1 Indirectly . | . . . Trap Hack Attempts . | . . . Triggered . | . . . Disarmed . | . . . Reprogrammed . | . . . Reused . | . . . Traps Extracted . | . . . Installed . | . . . Triggered . | . . . Machines | -11 -10 -9 ---------- Run | Scr Mat Mat Machines Disabled 4 | . . 4 Max in Single Turn 4 | . . 4 Machines Sabotaged . | . . . Garrisons Compromised . | . . . Overloaded Fab Kills . | . . . Fab Network Shutdowns . | . . . Hacking | -11 -10 -9 --------- Run | Scr Mat Mat Machines Accessed 3 | . . 3 Terminals 3 | . . 3 Fabricators . | . . . Repair Stations . | . . . Recycling Units . | . . . Scanalyzers . | . . . Garrison Access . | . . . Total Hacks 14 | . . 14 Successful 5 | . . 5 Failed 9 | . . 9 Catastrophic 1 | . . 1 Database Lockouts . | . . . Manual . | . . . Terminals 14 | . . 14 Fabricators . | . . . Repair Stations . | . . . Recycling Units . | . . . Scanalyzers . | . . . Garrison Access . | . . . Terminal Hacks 5 | . . 5 Prototype ID Bank 1 | . . 1 Alert Level 1 | . . 1 Unreport Threat 1 | . . 1 Locate Traps 1 | . . 1 Zone Layout 1 | . . 1 Fabricator Hacks . | . . . Repair Station Hacks . | . . . Recycling Unit Hacks . | . . . Scanalyzer . | . . . Garrison Access Hacks . | . . . Unauthorized Hacks . | . . . Terminals . | . . . Fabricators . | . . . Repair Stations . | . . . Recycling Units . | . . . Scanalyzers . | . . . Garrison Access . | . . . Data Cores Recovered . | . . . Used . | . . . Hacking Detections 3 | . . 3 Full Trace Events 2 | . . 2 Feedback Events . | . . . Feedback Blocked . | . . . Robot Schematics Acquired . | . . . Robots Built . | . . . Matter . | . . . Time . | . . . Total Robot Build Rating . | . . . Part Schematics Acquired . | . . . Parts Built . | . . . Matter . | . . . Time . | . . . Total Part Build Rating . | . . . Parts Repaired . | . . . Time . | . . . Parts Recycled . | . . . Recycled Matter . | . . . Retrieved Matter . | . . . Retrieved Components . | . . . Parts Scanalyzed . | . . . Part Schematics Acquired . | . . . Parts Damaged . | . . . Bothacking | -11 -10 -9 ------------ Run | Scr Mat Mat Used RIF Installer . | . . . Robots Hacked . | . . . Non-combat . | . . . Combat . | . . . Robot Hacks Applied . | . . . Relay Couplers Released . | . . . Robots Rewired . | . . . Allies Hacked . | . . . Hacks Repelled . | . . . Allies | -11 -10 -9 -------- Run | Scr Mat Mat Total Allies . | . . . Largest Group . | . . . Highest-Rated Group . | . . . Highest-Rated Ally . | . . . Total Orders . | . . . Ally Attacks . | . . . Total Damage . | . . . Kills . | . . . Allies Corrupted . | . . . Allies Melted . | . . . Intel | -11 -10 -9 ------- Run | Scr Mat Mat Robot Analysis Total . | . . . Derelict Logs Recovered . | . . . Drone Launches . | . . . Drone Recoveries . | . . . Exploration | -11 -10 -9 ------------- Run | Scr Mat Mat Turns Passed 1064 | 65 382 617 Spaces Moved 800 | 56 350 394 Core 31 | 31 . . Treads . | . . . Legs . | . . . Wheels 769 | 25 350 394 Hover . | . . . Flight . | . . . Fastest Speed 50 | 50 90 100 Average Speed 99 | 91 99 100 Slowest Speed 150 | 150 100 120 Overloaded Moves . | . . . Propulsion Burnouts . | . . . Robots Hopped . | . . . Cave-ins Triggered . | . . . Exploration Rate (%) 25 | 4 41 31 Regions Visited 2 Branch Regions . Pre-discovered Areas . | . . . Known Exits Taken . | . . . Unknown Exits Taken 2 | 1 1 . Scrap Searched . | . . . Spaces Dug . | . . . Terrain Destroyed 61 | . . 61 Melee . | . . . Projectile . | . . . AOE 61 | . . 61 Terrain Rammed . | . . . Walls Destroyed . | . . . Machines Disabled . | . . . Actions | -11 -10 -9 --------- Run | Scr Mat Mat Total 952 | 69 372 511 Wait 2 | . . 2 Move 798 | 55 349 394 Hop . | . . . Pick Up 35 | 8 8 19 Fast Attach . | . . . Attach 25 | 6 2 17 Detach . | . . . Swap 6 | . 4 2 Drop 4 | . 3 1 Fire 82 | . 6 76 Melee . | . . . Ram . | . . . Kick . | . . . Crush . | . . . Escape Stasis . | . . . Rewire . | . . . Trap . | . . . Miscellaneous . | . . . Route ------- -11/Scrapyard -10/Materials -9/Materials (discovered 1 exit: [*Sto]) History --------- Turn | Location | Event 21 | -11/Scrapyard | Discovered new exit (range 15) 66 | -11/Scrapyard | Entered Materials 300 | -10/Materials | Build established: Mutant 353 | -10/Materials | Discovered new exit (range 8) 448 | -10/Materials | Entered another Materials area 448 | -9/Materials | Evolved 2 slots: Utility x2 647 | -9/Materials | Lost 5 parts (1n1u3w) 734 | -9/Materials | Core integrity fell below 50% 755 | -9/Materials | Lost 3 parts (1p2w) 900 | -9/Materials | Discovered new exit (range 13) 1021 | -9/Materials | Lost 5 parts (1p1n2u1w) 1040 | -9/Materials | Core integrity fell below 20% 1065 | -9/Materials | Destroyed by Y-45 Defender with Heavy Assault Rifle Last Messages --------------- Ion Engine destroyed. K-01 Serf collects debris. G-34 Mercenary destroyed. K-01 Serf collects debris. Y-45 Defender destroyed. Acquired 50 matter. K-01 Serf collects debris. G-34 Mercenary destroyed. Acquired 24 matter. K-01 Serf collects debris. Shotgun destroyed. Acquired 1 matter. Ion Engine destroyed. Acquired Hvy. Assault Rifle. Heat Sink destroyed. K-01 Serf collects debris. Arm. Wheel destroyed. G-47 Trooper destroyed. K-01 Serf collects debris. Hvy. Assault Rifle destroyed. Map ----- +----------------------------------------------------+ | | | | | | | | | | | | | | | | | | | | | | | | | ???????????????????????????????? | | ???????????????????????????#???? | | ???????????????????????????????? | | ??????????????????????????????#? | | ???????????????????????????????? | | ???????????????????????????????? | | ???????????????????????####????? | | ?????????????#"??????#?# #??#?? | | ???????????????????????# #????? | | ???????????????????????#=!#??#?? | | ???????????????????????#!=#????# | | ????????????????? ????## =####?? | | ???????????????????#???##k*!!##? | | ???????????????????#????#@=% !#? | | ????????????????????????#* !#? | | ????????????????????????# !#? | | ????????????????????????# !#? | | ????????????????????? ??#Y !!##? | | ????????????????????????# ####?? | | ????????????????????????# #????? | | ?????????##+#####???????# #????? | | ?????????# #?????? # #????? | | ?????????#""" #?#????## #????? | | ?????????#""" #???#??## ##???? | | ?????? ??#""" ######## #???? | | ?????????# + #???? | | ??????? ?# ######## #???? | | ???????#?###/####??????##+##???? | | ??????????# #######?? ???? | | ??????????# = #?# """ #?? | | ???????#??# ##### #?# """ #?? | | ??????????#####??##=#?# """ #?? | | ???????????######?#%#?# #?? | | ??????????# """ ?#!#?# #?? | | ?"?????#??# """ #=#?########?? | | ? ????????# """ # #??????????? | | ?????????## + #??????????? | | ?????????## ! # #??????????? | +----------------------------------------------------+ Best States ------------- Heat Dissipation 38 Energy Generation 10 Energy Capacity 250 Matter Stores 300 Matter Capacity 300 Sight Range 16 Terrain Scan Range 16 Terrain Scan Density 10 Armor Coverage 150 Evasion (%) 50 Item Schematics ----------------- None Robot Schematics ------------------ None Fabricated ------------ Nothing Alien Tech Used ----------------- None Achievements -------------- None Challenges ------------ None Game ------ Seed HoverAntigravCompressor Manual? 0 Play Time 00:17:10 Cumulative 10.7 hours Start 2021.08.12 @ 00:46:00 End 2021.08.12 @ 12:21:37 Sessions 3 Manual Loads 0 Difficulty Rogue Special Mode None Game No. 21 Rogue 1 Adventurer 20 Explorer 0 Win Type - Total 1 Types 1/0/0/0/0/0/0/0/0 Lore% 13 Gallery% 34 Achievement% 25 Wizard Run 0 Options --------- ASCII 0 Keyboard 0 Movement Arrows Keybinds 0 Fullscreen 1 Font 18/SmallcapsGlow Map View 76x50 Tactical HUD 0 Map Filters NONE Filters NONE Steam 1 RUN: 5a81a058-0595-4084-b267-90db0ef811a8